bitfinex-derivatives/quotes_ETHF0:USTF0_20260112
["timestamp","ask_amount","ask_price","bid_price","bid_amount"]
[1768206870896,0.84107681,3126.7,3125.9,1.55879547]
[1768206871085,2.82551215,3127.1,3125.9,1.55879547]
[1768206871283,0.84119933,3127.0,3125.9,1.55879547]
[1768206871488,0.84119933,3126.9,3125.9,1.55879547]
[1768206871686,0.84119933,3126.8,3125.9,1.55879547]
[1768206871895,0.84119933,3126.7,3125.9,1.55879547]
[1768206872098,2.82551215,3127.1,3125.9,1.55879547]
[1768206872295,0.84072283,3127.0,3125.9,1.55879547]
[1768206872596,0.84072283,3126.9,3125.9,1.55879547]
[1768206872785,0.84072283,3126.8,3125.9,1.55879547]
[1768206872983,0.84072283,3126.7,3125.9,1.55879547]
[1768206873196,0.84072283,3126.6,3125.9,1.55879547]
[1768206873395,0.24962587,3126.5,3125.9,1.55879547]
[1768206873595,2.82551215,3127.1,3125.9,1.416]
[1768206877398,2.82551215,3127.1,3125.9,3.3831527]
[1768206877599,0.00303071,3127.6,3126.4,1.9671527]
[1768206877989,0.00303071,3127.6,3126.6,0.16012]
[1768206878195,2.2723979,3128.4,3126.6,0.16012]
[1768206878503,0.32152165,3128.3,3126.6,0.16012]
[1768206878704,2.41041227,3128.4,3126.6,0.16012]
[1768206878998,0.32152514,3128.3,3126.6,0.16012]
[1768206879200,0.00328462,3128.3,3126.6,0.16012]
[1768206879902,0.00328462,3128.3,3126.9,1.9671527]
[1768206880202,0.00328462,3128.3,3127.0,1.889]
[1768206880608,0.00328462,3128.3,3127.0,5.091]
[1768206880797,0.00328462,3128.3,3127.0,5.2511]
[1768206880992,0.14129899,3128.3,3127.0,0.1601]
[1768206881203,0.14129899,3128.3,3127.0,1.892]
[1768206882900,0.14129899,3128.3,3126.9,1.895]
[1768206885401,0.13801437,3128.1,3126.9,1.895]
[1768206885600,0.13801437,3127.9,3126.9,1.895]
[1768206885798,0.8404375,3127.8,3126.9,1.895]
[1768206886009,0.8404375,3127.7,3126.9,1.895]
[1768206886205,0.13801437,3127.9,3126.9,1.895]
[1768206886407,0.84057955,3127.8,3126.9,1.895]
[1768206886607,0.84057955,3127.7,3126.9,1.895]
[1768206886809,0.14129899,3128.3,3126.9,1.895]
[1768206887009,0.13801437,3128.1,3126.9,1.895]
[1768206887209,0.84058071,3128.0,3126.9,1.895]
[1768206890012,0.13801437,3127.9,3126.9,1.895]
[1768206893117,0.13801437,3127.9,3126.8,1.891]
[1768206895416,0.84036705,3127.8,3126.8,1.891]
[1768206895615,0.13801437,3127.9,3126.8,1.891]
[1768206895819,0.84036608,3127.8,3126.8,1.891]
[1768206896118,0.13801437,3127.9,3126.8,1.891]
[1768206896310,0.84046681,3127.8,3126.8,1.891]
[1768206896510,0.13801437,3127.9,3126.8,1.891]
[1768206896710,0.84046563,3127.8,3126.8,1.891]
[1768206896910,0.13801437,3127.9,3126.8,1.891]
[1768206897119,0.84046549,3127.8,3126.7,1.889]
[1768206897318,0.13801437,3127.9,3126.7,1.889]
[1768206897518,0.84056744,3127.8,3126.7,1.889]
[1768206897721,0.13801437,3127.9,3126.7,1.889]
[1768206898019,0.84056666,3127.8,3126.7,1.889]
[1768206898221,0.13801437,3127.9,3126.7,1.889]
[1768206898423,0.84067862,3127.8,3126.7,1.889]
[1768206898724,0.13801437,3127.9,3126.7,1.889]
[1768206898921,0.84064494,3127.8,3126.7,1.889]
[1768206899118,0.13801437,3127.9,3126.7,1.889]
[1768206899319,0.84068489,3127.8,3126.7,1.889]
[1768206899521,0.13801437,3127.9,3126.7,1.889]
[1768206899721,0.8406767,3127.8,3126.7,1.889]
[1768206900021,0.13801437,3127.9,3126.7,1.889]
[1768206900222,0.84067527,3127.8,3126.5,0.16013]
[1768206900423,0.13801437,3127.9,3126.6,1.888]
[1768206900621,0.13801437,3127.7,3125.8,0.16016]
[1768206900823,0.13801437,3127.5,3125.8,2.04816]
[1768206901026,0.84077545,3127.4,3125.8,2.04816]
[1768206901326,0.84077545,3127.3,3125.9,1.888]
[1768206901525,0.84077545,3127.2,3125.9,1.888]
[1768206901718,0.13801437,3127.5,3125.9,1.888]
[1768206902021,0.97881088,3127.4,3125.9,1.888]
[1768206902214,0.84079651,3127.3,3125.9,1.888]
[1768206902422,0.84079651,3127.2,3126.0,1.888]
[1768206902622,0.13801437,3127.9,3126.0,1.888]
[1768206902925,0.13801437,3127.7,3126.0,1.888]
[1768206903123,0.13801437,3127.5,3126.0,1.888]
[1768206903324,0.84117597,3127.4,3126.0,1.888]
[1768206903925,0.97919034,3127.4,3126.0,1.888]
[1768206904118,0.84117597,3127.3,3126.0,1.888]
[1768206904727,0.98094212,3127.3,3126.0,1.888]
[1768206904929,0.84117597,3127.2,3126.0,1.888]
[1768206905122,0.84108908,3127.1,3126.0,1.888]
[1768206905317,0.13976615,3127.3,3126.0,1.888]
[1768206905524,0.84118718,3127.2,3126.0,1.888]
[1768206905717,0.84118718,3127.1,3126.0,1.888]
[1768206905920,0.13976615,3127.3,3126.0,1.888]
[1768206906123,0.84118621,3127.2,3126.0,1.888]
[1768206906323,0.84118621,3127.1,3126.0,1.888]
[1768206906524,0.13976615,3127.3,3126.0,1.888]
[1768206906723,0.84123129,3127.2,3126.0,1.887]
[1768206906922,0.84123129,3127.1,3126.0,1.887]
[1768206907129,0.13976615,3127.3,3126.0,1.887]
[1768206907330,0.84138887,3127.2,3126.0,1.887]
[1768206907530,0.84138887,3127.1,3126.0,1.887]
[1768206907725,0.13976615,3127.3,3126.0,1.886]
[1768206907930,0.84129549,3127.2,3126.0,1.886]
[1768206908131,0.84129549,3127.1,3126.0,1.886]
[1768206908335,0.13976615,3127.3,3126.0,1.886]
[1768206908631,0.84120839,3127.2,3126.0,1.886]
[1768206908834,0.84120839,3127.1,3126.0,1.886]
[1768206909032,0.13976615,3126.9,3125.1,0.1602]
[1768206909229,0.13976615,3126.7,3125.2,1.886]
[1768206909422,0.13976615,3126.5,3124.5,3.01607592]
[1768206909627,0.13976615,3126.3,3124.7,1.886]
[1768206909825,0.98092469,3126.2,3124.7,1.886]
[1768206910029,0.84115854,3126.1,3124.7,1.886]
[1768206910327,0.00345804,3126.1,3124.7,1.886]
[1768206910836,0.13570202,3126.1,3124.7,1.886]
[1768206911138,0.83975363,3126.0,3124.7,1.886]
[1768206911332,0.13570202,3126.1,3124.7,1.886]
[1768206912341,0.13224398,3125.9,3123.9,0.16026]
[1768206912535,0.13224398,3125.7,3124.3,1.885]
[1768206913328,0.13224398,3125.7,3124.6,0.06335702]
[1768206914133,0.00345804,3126.1,3124.6,0.06335702]
[1768206914337,0.8378529,3126.0,3124.6,0.06335702]
[1768206914539,0.13570202,3126.1,3124.6,0.06335702]
[1768206915237,0.13570202,3126.1,3124.7,1.888]
[1768206915438,0.13570202,3126.1,3124.6,1.95235702]
[1768206917341,0.00345804,3126.1,3124.6,1.95235702]
[1768206918843,0.00345804,3126.1,3124.6,0.06335702]
[1768206919142,0.00345804,3126.1,3124.7,1.897]
[1768206919841,0.13570202,3126.1,3124.8,1.898]
[1768206921745,0.13570202,3126.1,3124.6,0.06335702]
[1768206921947,0.13570202,3126.1,3124.7,1.898]
[1768206926056,0.13570202,3126.1,3124.6,0.06335702]
[1768206926249,0.13570202,3126.1,3124.6,1.95935702]
[1768206926954,0.00345804,3126.1,3124.6,1.95935702]
[1768206927455,0.13224398,3127.0,3125.0,0.14142791]
[1768206927656,0.83738277,3126.9,3125.2,0.16019]
[1768206927952,0.83738277,3126.8,3125.2,0.16019]
[1768206928153,0.83774245,3126.7,3125.2,0.16019]
[1768206928353,0.13224398,3127.0,3125.2,0.16019]
[1768206928555,0.84210168,3126.9,3125.2,0.16019]
[1768206928760,0.84210168,3126.8,3125.2,0.16019]
[1768206928965,0.84210168,3126.7,3125.2,0.16019]
[1768206929263,0.13495349,3127.0,3125.2,0.16019]
[1768206929456,0.84235999,3126.9,3125.2,0.16019]
[1768206929656,0.84235999,3126.8,3125.2,0.16019]
[1768206929851,0.13495349,3127.0,3125.2,0.30161791]
[1768206930065,0.84237804,3126.9,3125.2,0.30161791]
[1768206930362,0.84237804,3126.8,3125.2,0.30161791]
[1768206930564,0.00270951,3127.0,3125.9,0.30158791]
[1768206930758,0.13224398,3128.0,3126.0,2.03642791]
[1768206931062,0.84253146,3127.9,3126.0,2.03642791]
[1768206931257,0.97477544,3127.8,3126.0,2.03642791]
[1768206931459,0.84253146,3127.7,3126.0,2.03642791]
[1768206931659,0.84253146,3127.6,3126.0,2.03642791]
[1768206931862,0.84253146,3127.5,3126.0,2.03642791]
[1768206932058,0.00372961,3127.7,3126.0,2.03642791]
[1768206932263,0.84244583,3127.6,3126.0,2.03642791]
[1768206932464,0.84244583,3127.5,3126.0,2.03642791]
[1768206932763,0.84244583,3127.4,3126.0,2.03642791]
[1768206933062,0.00372961,3127.7,3126.0,2.03642791]
[1768206933255,0.84237997,3127.6,3126.1,0.14142791]
[1768206933455,0.84237997,3127.5,3126.1,0.14142791]
[1768206933661,0.84237997,3127.4,3126.0,1.895]
[1768206933863,0.13224398,3127.6,3126.0,1.895]
[1768206934156,0.13277576,3127.4,3126.0,1.895]
[1768206934563,0.84221233,3127.3,3126.1,1.901]
[1768206934761,0.13277576,3127.4,3126.1,1.901]
[1768206935465,0.97484889,3127.3,3126.1,1.903]
[1768206935761,0.13277576,3127.3,3126.1,1.903]
[1768206937065,0.00372961,3127.7,3126.1,1.903]
[1768206937266,0.84445885,3127.6,3126.1,1.903]
[1768206937466,0.97723461,3127.5,3126.1,1.903]
[1768206937661,0.84445885,3127.4,3126.1,1.903]
[1768206937861,0.84445885,3127.3,3126.1,1.903]
[1768206938173,0.13277576,3127.5,3126.1,1.903]
[1768206938354,0.84440487,3127.4,3126.1,1.903]
[1768206938558,0.84440487,3127.3,3126.1,1.903]
[1768206938758,0.13277576,3127.6,3126.1,1.903]
[1768206938959,0.13277576,3127.4,3126.1,1.903]
[1768206939160,0.13277576,3127.4,3125.9,0.16016]
[1768206939161,0.84435091,3127.3,3125.9,0.16016]
[1768206939363,0.13277576,3127.1,3125.3,3.202]
[1768206939563,0.13277576,3126.9,3125.4,1.911]
[1768206939870,0.97712667,3126.8,3125.5,1.911]
[1768206940169,0.13277576,3126.8,3125.5,1.911]
[1768206940472,0.13277576,3126.6,3125.1,1.91]
[1768206940672,0.97679138,3126.5,3125.1,1.91]
[1768206940871,0.84401562,3126.4,3125.1,1.91]
[1768206941065,0.13277576,3126.5,3125.1,1.91]
[1768206941268,0.84399588,3126.4,3125.1,1.91]
[1768206941466,0.13277576,3126.5,3125.1,1.91]
[1768206941666,0.84403193,3126.4,3125.1,1.91]
[1768206941869,0.13277576,3126.5,3125.1,1.91]
[1768206942065,0.13277576,3126.3,3125.1,1.91]
[1768206942270,0.13277576,3126.1,3124.6,0.06335702]
[1768206942471,0.13277576,3125.9,3124.6,0.06335702]
[1768206942666,0.13277576,3125.7,3123.6,1.909]
[1768206942867,0.13277576,3125.5,3123.6,1.909]
[1768206943071,0.13277576,3125.3,3123.6,1.909]
[1768206943268,0.13277576,3125.1,3123.6,1.909]
[1768206943475,0.13277576,3124.9,3122.8,0.16031]
[1768206943682,0.13277576,3124.7,3122.8,0.16330001]
[1768206943983,0.13277576,3124.5,3122.5,0.1]
[1768206944175,2.23109171,3122.6,3120.3,2.04086865]
[1768206944378,3.205,3123.9,3120.3,2.04086865]
[1768206944379,1.8435879,3124.3,3120.3,1.909]
[1768206944680,3.97176447,3124.8,3120.3,1.909]
[1768206944681,2.23109171,3126.3,3123.1,0.1603]
[1768206944864,2.23109171,3125.6,3124.7,0.05128509]
[1768206945177,2.23109171,3125.2,3123.7,0.015]
[1768206945371,2.23109171,3124.5,3123.8,3.218]
[1768206945575,0.00241823,3126.3,3123.9,5.112]
[1768206945770,2.23109171,3125.9,3124.0,1.909]
[1768206946078,0.48825886,3125.8,3124.0,1.825]
[1768206946274,0.48825886,3125.7,3123.2,40.8]
[1768206946472,2.23109171,3125.3,3123.3,1.908]
[1768206946676,0.62103462,3125.2,3123.2,40.8]
[1768206946873,0.48811402,3125.1,3123.4,1.909]
[1768206947071,0.48811402,3125.0,3123.4,1.909]
[1768206947375,0.13277576,3125.2,3123.5,1.91]
[1768206947581,0.48797251,3125.1,3123.5,1.91]
[1768206947878,0.48797251,3125.0,3123.6,1.912]
[1768206948076,0.13277576,3125.2,3123.6,1.912]
[1768206948270,0.48797495,3125.1,3123.6,1.912]
[1768206948470,0.13277576,3125.8,3123.6,1.912]
[1768206948678,0.13277576,3125.6,3123.6,1.912]
[1768206948872,0.13277576,3125.6,3123.3,0.16029]
[1768206948873,0.13277576,3125.4,3123.3,0.16029]
[1768206949081,0.13277576,3125.2,3123.3,0.16029]
[1768206949273,0.13277576,3125.0,3123.1,1.53510086]
[1768206949475,0.13277576,3124.8,3123.1,0.00310086]
[1768206949677,0.62064428,3124.7,3123.1,0.99310086]
[1768206949981,0.13277576,3126.0,3123.1,0.00310086]
[1768206950179,0.13277576,3125.8,3123.2,1.914]
[1768206950480,0.13277576,3125.6,3123.3,1.915]
[1768206950681,0.16015,3126.1,3123.3,1.915]
[1768206950682,0.13277576,3125.4,3123.3,1.915]
[1768206950982,0.13277576,3125.2,3123.3,1.915]
[1768206951181,0.13277576,3125.0,3123.3,1.915]
[1768206951478,0.62036969,3124.9,3123.1,0.00310086]
[1768206951781,0.48759393,3124.8,3123.2,1.915]
[1768206951982,0.13277576,3124.9,3123.2,1.915]
[1768206952181,0.48728623,3124.8,3123.2,1.915]
[1768206952474,0.13277576,3124.9,3123.2,1.915]
[1768206952684,0.48714487,3124.8,3123.2,1.916]
[1768206952868,0.13277576,3124.9,3123.2,2.07629]
[1768206953071,0.48714533,3124.8,3123.2,2.07629]
[1768206953267,0.13277576,3124.9,3123.2,0.16029]
[1768206953678,0.13277576,3124.9,3123.3,1.916]
[1768206954482,0.48680215,3124.8,3123.3,2.07629]
[1768206954671,0.13277576,3124.9,3123.3,2.07629]
[1768206954880,0.48684573,3124.8,3123.3,2.07629]
[1768206955180,0.13277576,3125.4,3123.3,2.07629]
[1768206955482,0.48673499,3125.3,3123.3,2.07629]
[1768206955679,0.13277576,3126.0,3123.4,0.13186865]
[1768206955881,0.48688084,3125.9,3124.1,0.16025]
[1768206956077,0.13277576,3125.7,3124.1,2.07525]
[1768206956275,0.00241823,3126.3,3124.1,2.07525]
[1768206956276,0.13277576,3125.6,3124.1,0.16025]
[1768206956678,0.13277576,3125.4,3123.2,0.16029]
[1768206956872,0.13277576,3124.9,3123.1,0.00310086]
[1768206957071,0.13277576,3124.7,3123.1,0.00310086]
[1768206957378,0.13277576,3124.5,3123.1,0.00310086]
[1768206957581,0.13277576,3124.3,3123.1,0.00310086]
[1768206959084,0.13277576,3124.8,3123.1,0.00310086]
[1768206959279,2.23109171,3125.0,3123.1,0.00310086]
[1768206959280,0.13277576,3124.6,3123.1,0.00310086]
[1768206959581,0.48632063,3124.5,3123.1,0.00310086]
[1768206959782,0.13277576,3124.6,3123.1,0.00310086]
[1768206960381,0.13277576,3124.4,3123.1,0.00310086]
[1768206960682,0.16026,3124.0,3121.2,3.204]
[1768206960880,0.13277576,3123.8,3121.2,3.204]
[1768206961080,0.13277576,3123.5,3121.0,0.16041]
[1768206961375,0.13277576,3123.3,3121.0,0.16041]
[1768206961575,0.13277576,3123.1,3120.8,1.09742663]
[1768206961776,0.13277576,3122.8,3121.0,0.00355477]
[1768206961985,0.13277576,3122.6,3121.0,0.00355477]
[1768206962285,0.13277576,3123.2,3121.0,0.16396477]
[1768206962577,0.13277576,3123.0,3121.0,0.16396477]
[1768206962779,0.13277576,3122.8,3121.0,0.16396477]
[1768206962980,0.48527015,3122.7,3121.0,0.16396477]
[1768206963173,0.13277576,3122.6,3121.0,0.16396477]
[1768206963375,0.13277576,3122.6,3121.0,0.00355477]
[1768206963571,0.13277576,3122.4,3121.0,0.00355477]
[1768206964476,0.0027726,3123.3,3121.0,0.00355477]
[1768206964477,0.13656282,3122.2,3121.0,0.00355477]
[1768206964774,0.13656282,3123.2,3121.0,0.00355477]
[1768206964978,0.13656282,3123.0,3121.0,0.00355477]
[1768206965176,0.13656282,3122.8,3121.0,0.00355477]
[1768206965378,0.13656282,3122.6,3121.0,0.00355477]
[1768206965787,0.13656282,3122.4,3121.0,0.00355477]
[1768206966377,0.13656282,3122.2,3121.0,0.00355477]
[1768206966578,0.13656282,3122.0,3120.8,1.09742663]
[1768206966791,0.13656282,3121.8,3120.8,0.09440483]
[1768206967577,0.13656282,3121.8,3120.8,0.09810613]
[1768206967974,0.13656282,3121.8,3117.4,3.205]
[1768206967975,2.23109171,3121.5,3119.1,3.3665]
[1768206968184,0.13656282,3121.3,3119.1,0.1605]
[1768206968479,0.13656282,3121.1,3119.2,0.1605]
[1768206968987,0.13926383,3121.1,3119.2,0.16305172]
[1768206969389,0.13926383,3121.1,3119.3,0.16049]
[1768206970086,0.00270101,3121.1,3119.2,0.13770349]
[1768206970279,0.00270101,3121.1,3120.2,0.16045]
[1768206970478,0.13343852,3122.3,3120.2,0.16045]
[1768206970679,0.13343852,3122.1,3120.2,0.16045]
[1768206970881,0.48505888,3122.0,3120.2,0.16045]
[1768206971384,0.4886792,3122.0,3120.2,0.16045]
[1768206971582,0.48505888,3121.9,3120.2,0.16045]
[1768206971783,0.13343852,3121.8,3119.4,0.13515177]
[1768206971988,0.13343852,3121.6,3119.4,0.16049]
[1768206972289,0.13343852,3120.9,3119.2,0.00255172]
[1768206972476,2.23109171,3121.0,3119.2,0.00255172]
[1768206972477,0.13343852,3120.7,3119.2,0.00255172]
[1768206972681,0.13343852,3120.5,3119.2,0.00255172]
[1768206972884,0.13343852,3120.3,3119.2,0.00255172]
[1768206973482,0.13343852,3121.2,3119.2,6.00255172]
[1768206973688,0.13343852,3121.8,3119.7,0.16047]
[1768206973880,0.13343852,3121.8,3119.8,0.16047]
[1768206974090,0.13343852,3121.8,3120.2,0.16045]
[1768206974291,0.00362032,3122.0,3119.9,44.007]
[1768206974794,0.13705884,3122.0,3120.0,5.119]
[1768206975294,0.13705884,3122.0,3119.7,0.16047]
[1768206975499,0.13705884,3122.0,3119.8,5.12]
[1768206975688,0.13705884,3122.0,3119.8,40.8]
[1768206975890,0.13343852,3121.8,3119.8,40.8]
[1768206976087,0.13343852,3121.8,3119.8,0.16047]
[1768206976590,0.13343852,3121.8,3120.0,0.16046]
[1768206977090,0.00362032,3122.0,3120.2,0.16045]
[1768206977287,0.13705884,3122.0,3120.2,0.16045]
[1768206977486,0.13343852,3121.8,3119.4,0.16049]
[1768206977683,0.13343852,3121.8,3119.5,5.122]
[1768206977884,0.13343852,3121.7,3119.5,5.122]
[1768206978083,0.13343852,3121.7,3119.4,0.16049]
[1768206978284,0.13343852,3121.7,3119.6,1.915]
[1768206979093,0.13343852,3121.5,3119.5,0.16049]
[1768206979298,0.13343852,3121.3,3118.4,0.12515575]
[1768206979482,0.13343852,3120.9,3118.1,0.16055]
[1768206979681,0.16041,3121.0,3118.1,0.16055]
[1768206979682,0.13343852,3120.7,3118.2,0.16055]
[1768206979893,0.13343852,3120.5,3118.2,0.16055]
[1768206980097,0.13343852,3120.3,3118.2,0.16055]
[1768206980295,0.13343852,3120.3,3118.2,4.01855]
[1768206980596,0.13343852,3120.9,3118.6,0.16053]
[1768206980785,0.61855829,3120.8,3118.6,0.16053]
[1768206981098,0.13343852,3120.8,3118.6,0.16053]
[1768206981687,0.48515831,3120.7,3118.6,0.16053]
[1768206981896,0.13343852,3120.6,3118.6,0.16053]
[1768206982096,0.13343852,3120.6,3118.3,0.12371039]
[1768206982396,3.205,3122.3,3118.3,0.12371039]
[1768206982397,0.13343852,3121.3,3119.1,0.16051]
[1768206982593,0.13343852,3121.1,3119.1,0.16051]
[1768206982794,1.97618195,3120.2,3118.3,0.16054]
[1768206982992,0.13343852,3120.3,3118.5,0.16054]
[1768206983487,0.13343852,3120.3,3117.7,0.12132232]
[1768206983690,0.13343852,3119.9,3117.9,0.16056]
[1768206983884,0.13343852,3119.9,3118.0,0.16056]
[1768206984698,0.16044,3120.4,3118.0,0.16056]
[1768206984699,0.13343852,3119.4,3118.0,0.00375223]
[1768206984905,0.13673289,3119.4,3118.0,0.00375223]
[1768206985401,0.13343852,3119.2,3118.0,0.00375223]
[1768206985594,0.13343852,3119.0,3116.8,0.16062]
[1768206985802,0.13343852,3119.0,3116.9,0.16062]
[1768206986299,0.13343852,3119.0,3117.0,0.16061]
[1768206986604,0.13343852,3119.0,3117.0,0.16370304]
[1768206987003,0.00329437,3119.4,3117.0,0.16370304]
[1768206987004,0.13343852,3118.8,3117.0,0.16370304]
[1768206987494,0.13673289,3119.4,3117.3,0.1606]
[1768206987689,0.13673289,3119.4,3117.4,0.16059]
[1768206988092,0.13343852,3119.2,3117.4,0.16059]
[1768206988394,0.00329437,3119.4,3117.7,0.16058]
[1768206988595,0.00329437,3119.4,3117.0,0.00309304]
[1768206988596,0.13673289,3119.4,3117.0,0.00309304]
[1768206988901,0.13343852,3119.2,3117.0,5.12809304]
[1768206989290,0.13343852,3119.0,3117.1,0.16061]
[1768206989692,0.13343852,3119.0,3117.0,0.00309304]
[1768206989902,0.13343852,3118.5,3117.0,0.00309304]
[1768206990094,0.13343852,3118.3,3117.0,0.00309304]
[1768206990291,0.13343852,3118.9,3117.0,0.00309304]
[1768206990486,0.4654105,3118.8,3117.0,0.00309304]
[1768206990692,0.00329437,3119.4,3117.3,0.1606]
[1768206990894,0.46554791,3119.3,3117.1,2.10304849]
[1768206991095,0.13343852,3119.1,3117.3,0.1606]
[1768206991295,0.46554791,3119.0,3117.3,0.1606]
[1768206991500,0.46554791,3118.9,3117.3,0.1606]
[1768206991696,0.46554791,3118.8,3117.3,0.1606]
[1768206991898,0.46554791,3118.7,3117.3,0.1606]
[1768206992193,1.37e-06,3118.6,3117.3,6.0]
[1768206992399,0.13343852,3120.3,3118.8,0.16052]
[1768206992600,0.13343852,3121.4,3118.9,5.124]
[1768206992895,0.13343852,3120.9,3118.8,0.16052]
[1768206993293,0.13343852,3120.9,3118.9,0.16052]
[1768206993596,0.13606044,3120.9,3119.0,3.209]
[1768206994295,0.13606044,3120.9,3119.0,9.209]
[1768206994501,0.14308335,3121.4,3120.0,0.16046]
[1768206994801,0.14308335,3122.5,3120.9,1.97618195]
[1768206994996,0.14308335,3123.8,3121.0,5.123]
[1768206995202,0.14308335,3123.6,3121.4,1.97618195]
[1768206995397,0.14308335,3123.4,3121.4,1.97618195]
[1768206995600,0.00259551,3123.4,3121.9,1.97618195]
[1768206995804,0.14567886,3123.4,3122.0,5.123]
[1768206995997,0.14567886,3123.4,3121.4,0.00383244]
[1768206996302,0.14567886,3123.4,3121.5,5.123]
[1768206998006,0.14567886,3123.4,3121.4,0.00383244]
[1768206998007,0.14308335,3122.5,3121.4,0.00383244]
[1768206999402,0.14308335,3122.0,3120.1,3.208]
[1768206999612,0.14308335,3121.5,3119.3,3.208]
[1768206999798,0.14308335,3121.3,3119.4,1.912]
[1768207000508,0.14308335,3121.3,3119.4,1.91533038]
[1768207001608,0.14308335,3121.3,3119.4,7.91533038]
[1768207001909,0.14308335,3122.1,3119.7,2.13665195]
[1768207002408,2.1192653,3122.9,3120.3,0.16044]
[1768207002605,0.14308335,3122.3,3120.3,1.698]
[1768207003410,0.14308335,3122.3,3120.1,5.119]
[1768207004209,0.14308335,3122.3,3120.0,0.16046]
[1768207004412,0.14308335,3122.1,3120.0,0.16046]
[1768207004614,0.14308335,3122.1,3120.0,5.27846]
[1768207005310,0.14308335,3122.1,3120.0,0.16046]
[1768207005510,0.14308335,3122.1,3120.1,1.91]
[1768207005714,0.14308335,3122.1,3120.0,0.16046]
[1768207005918,0.14308335,3122.1,3120.1,5.118]
[1768207006912,0.14308335,3122.1,3120.0,0.16046]
[1768207007108,0.14308335,3122.1,3120.2,1.909]
[1768207008715,0.14308335,3122.7,3120.3,0.14131242]
[1768207009210,0.14308335,3122.7,3120.9,0.16041]
[1768207009419,0.14308335,3122.7,3121.0,5.116]
[1768207009914,0.14308335,3122.7,3120.9,0.16041]
[1768207010109,0.14308335,3122.7,3121.0,5.116]
[1768207010509,0.14308335,3123.3,3121.0,5.116]
[1768207010709,0.78953406,3123.2,3121.1,0.1604]
[1768207010910,0.14308335,3123.3,3120.5,40.8]
[1768207011212,0.14308335,3123.1,3121.1,0.1604]
[1768207011514,0.14308335,3123.1,3121.2,0.16039]
[1768207011818,0.14308335,3123.1,3121.3,0.16039]
[1768207012015,0.14308335,3123.1,3121.3,1.908]
[1768207012205,0.14308335,3122.3,3120.6,3.208]
[1768207012410,0.14308335,3122.3,3120.4,1.908]
[1768207014025,1.97618195,3121.7,3119.5,0.30179242]
[1768207014318,0.14308335,3121.1,3119.4,3.21133038]
[1768207014519,0.14537801,3121.1,3119.4,3.21133038]
[1768207016117,0.00229466,3121.1,3119.4,3.37182038]
[1768207016721,0.00229466,3121.1,3119.5,2.06648]
[1768207017317,0.00229466,3121.1,3119.5,0.16048]
[1768207017618,0.00229466,3121.1,3119.6,5.114]
[1768207018126,0.00229466,3121.1,3119.9,0.16046]
[1768207019123,0.14308335,3122.3,3119.9,0.16046]
[1768207019326,0.79195331,3122.2,3120.0,0.16046]
[1768207019523,0.79195331,3122.1,3120.0,0.16046]
[1768207019826,2.41452927,3122.6,3120.0,0.16046]
[1768207019827,0.14308335,3121.9,3120.1,5.113]
[1768207020027,0.79195331,3121.8,3120.1,5.113]
[1768207020324,0.79312418,3121.7,3120.0,0.16046]
[1768207020626,0.14308335,3121.5,3119.9,3.208]
[1768207020820,0.14308335,3120.9,3119.4,0.00333038]
[1768207021023,0.14308335,3120.7,3119.4,0.00333038]
[1768207021327,0.14308335,3120.5,3119.4,0.00333038]
[1768207021518,0.14308335,3120.3,3119.4,0.00333038]
[1768207021824,0.14308335,3120.1,3118.2,5.113]
[1768207022019,0.14308335,3119.9,3117.8,0.16057]
[1768207022220,0.79302058,3120.0,3117.8,0.16057]
[1768207022221,0.14308335,3119.7,3117.8,2.05757]
[1768207022535,0.14308335,3119.7,3117.8,2.06557]
[1768207022737,0.79365084,3119.6,3117.8,0.16341164]
[1768207022934,0.14719927,3119.7,3117.8,0.16341164]
[1768207023129,0.79367941,3119.6,3117.8,0.16341164]
[1768207023335,0.00411592,3119.7,3118.1,0.16056]
[1768207023534,6.09563643,3121.1,3118.6,0.14131242]
[1768207023535,0.14308335,3121.0,3118.6,0.14131242]
[1768207023837,1.17255656,3120.9,3118.7,0.30184242]
[1768207024025,0.14308335,3121.0,3118.8,0.30183242]
[1768207024230,0.14308335,3121.0,3118.9,5.27252]
[1768207024534,0.003287,3121.0,3119.1,0.63135705]
[1768207024739,0.003287,3121.0,3119.1,0.47084705]
[1768207025241,0.46147399,3121.0,3119.3,0.1605]
[1768207025426,0.46147399,3121.0,3119.0,5.112]
[1768207025833,0.46147399,3121.0,3118.5,0.47084705]
[1768207026028,0.46147399,3121.0,3118.7,0.16052]
[1768207026232,0.45818699,3120.8,3118.7,0.16052]
[1768207026431,0.003287,3121.0,3118.7,0.47084705]
[1768207026927,0.003287,3121.0,3118.8,5.111]
[1768207026928,0.45818699,3120.8,3118.8,5.111]
[1768207027640,0.003287,3121.0,3119.1,0.1605]
[1768207027833,0.45818699,3120.8,3118.4,0.16054]
[1768207028037,0.45818699,3120.6,3118.4,5.27154]
[1768207028329,0.45818699,3120.4,3117.8,0.00284164]
[1768207028536,0.45818699,3120.2,3117.8,0.00284164]
[1768207028738,0.45818699,3120.0,3117.8,5.11384164]
[1768207028929,0.45818699,3119.8,3117.8,5.11384164]
[1768207029534,0.45818699,3119.8,3117.9,5.111]
[1768207030841,0.55044075,3120.2,3117.9,5.111]
[1768207031137,0.79504614,3120.1,3117.9,5.111]
[1768207031339,0.79504614,3120.0,3117.9,5.111]
[1768207031529,0.55044075,3119.8,3117.8,0.00284164]
[1768207031733,0.55044075,3119.6,3117.8,0.00284164]
[1768207032133,0.79415352,3119.5,3117.8,0.00284164]
[1768207032340,0.55044075,3119.6,3117.8,0.00284164]
[1768207032642,0.79416466,3119.5,3117.8,0.00284164]
[1768207032837,0.55044075,3119.6,3117.8,0.00284164]
[1768207033031,0.55044075,3119.4,3117.8,0.00284164]
[1768207033435,0.55044075,3119.2,3117.8,0.00284164]
[1768207033634,0.55044075,3119.0,3117.8,0.00284164]
[1768207033840,0.79369812,3118.9,3117.8,0.00284164]
[1768207034135,0.55044075,3119.0,3117.8,0.00284164]
[1768207035740,0.55044075,3119.0,3117.2,0.1606]
[1768207036140,0.55044075,3119.5,3117.0,0.53923265]
[1768207036439,0.55044075,3119.3,3116.6,0.17825125]
[1768207036644,0.55044075,3119.1,3116.7,3.209]